[Event "Late-Titled-Tuesday-Blitz-June-25-2024"]
[Site "Chess.com"]
[Date "2024.06.25"]
[Round "5"]
[White "Quattroporte300"]
[Black "bazar-wokzal"]
[Result "0-1"]
[WhiteElo "2434"]
[BlackElo "2609"]
[TimeControl "180+1"]
[EndTime "14:53:39 PDT"]
[Termination "bazar-wokzal won by checkmate"]

1. e4 {[%clk 0:03:00.1]} 1... Nc6 {[%clk 0:02:59.3]} 2. Nf3 {[%clk 0:02:57.7]}
2... d5 {[%clk 0:02:58.8]} 3. exd5 {[%clk 0:02:57.5]} 3... Qxd5 {[%clk
0:02:58.7]} 4. Nc3 {[%clk 0:02:58.2]} 4... Qa5 {[%clk 0:02:58.6]} 5. d4 {[%clk
0:02:57.2]} 5... Bg4 {[%clk 0:02:58.3]} 6. Bb5 {[%clk 0:02:50.9]} 6... O-O-O
{[%clk 0:02:58]} 7. Bxc6 {[%clk 0:02:50.1]} 7... bxc6 {[%clk 0:02:58.9]} 8. h3
{[%clk 0:02:44.7]} 8... Qh5 {[%clk 0:02:57.7]} 9. Be3 {[%clk 0:02:39.1]} 9... e6
{[%clk 0:02:55.6]} 10. Qe2 {[%clk 0:02:37.8]} 10... Bxf3 {[%clk 0:02:54.9]} 11.
gxf3 {[%clk 0:02:34.1]} 11... Bb4 {[%clk 0:02:54.3]} 12. Qa6+ {[%clk 0:02:28.2]}
12... Kd7 {[%clk 0:02:53.9]} 13. Qe2 {[%clk 0:02:10]} 13... Bxc3+ {[%clk
0:02:40.5]} 14. bxc3 {[%clk 0:02:09.5]} 14... Ne7 {[%clk 0:02:41.2]} 15. c4
{[%clk 0:02:00.3]} 15... Rb8 {[%clk 0:02:37]} 16. Bd2 {[%clk 0:01:55.9]} 16...
Rhd8 {[%clk 0:02:26.4]} 17. Kf1 {[%clk 0:01:50.4]} 17... Ke8 {[%clk 0:02:25.2]}
18. c3 {[%clk 0:01:46.9]} 18... Rb2 {[%clk 0:02:22.4]} 19. Kg2 {[%clk
0:01:44.6]} 19... Rdb8 {[%clk 0:02:17.1]} 20. Kh2 {[%clk 0:01:40.9]} 20... Nf5
{[%clk 0:02:06.1]} 21. Rhg1 {[%clk 0:01:26.9]} 21... Rc2 {[%clk 0:01:54.1]} 22.
Rab1 {[%clk 0:00:48.1]} 22... Rxb1 {[%clk 0:01:43.5]} 23. Rxb1 {[%clk
0:00:47.6]} 23... Nh4 {[%clk 0:01:42.7]} 24. Rb8+ {[%clk 0:00:43.7]} 24... Kd7
{[%clk 0:01:42.4]} 25. Kg3 {[%clk 0:00:40.8]} 25... Nxf3 {[%clk 0:01:27.2]} 26.
Qxf3 {[%clk 0:00:39.9]} 26... Qxf3+ {[%clk 0:01:26.6]} 27. Kxf3 {[%clk
0:00:40.8]} 27... Rxd2 {[%clk 0:01:26.9]} 28. a4 {[%clk 0:00:35.4]} 28... Rd3+
{[%clk 0:01:26.3]} 29. Ke4 {[%clk 0:00:24.1]} 29... Rxc3 {[%clk 0:01:26.4]} 30.
c5 {[%clk 0:00:24.5]} 30... Rxh3 {[%clk 0:01:18.7]} 31. Ra8 {[%clk 0:00:23.6]}
31... Ra3 {[%clk 0:01:00.1]} 32. Rxa7 {[%clk 0:00:23.3]} 32... h5 {[%clk
0:01:00.2]} 33. f3 {[%clk 0:00:20.2]} 33... g5 {[%clk 0:00:49.8]} 34. Ra8 {[%clk
0:00:20.6]} 34... Ke7 {[%clk 0:00:49.6]} 35. f4 {[%clk 0:00:15.8]} 35... f5+
{[%clk 0:00:48.6]} 36. Ke5 {[%clk 0:00:15.5]} 36... Re3# {[%clk 0:00:48.8]} 0-1

[Event "Late-Titled-Tuesday-Blitz-June-25-2024"]
[Site "Chess.com"]
[Date "2024.06.25"]
[Round "5"]
[White "NigiriSushies"]
[Black "Boudicca64"]
[Result "1-0"]
[WhiteElo "2299"]
[BlackElo "1936"]
[TimeControl "180+1"]
[EndTime "14:53:43 PDT"]
[Termination "NigiriSushies won on time"]

1. Nf3 {[%clk 0:03:00.9]} 1... Nf6 {[%clk 0:02:31.6]} 2. g3 {[%clk 0:02:59.8]}
2... g6 {[%clk 0:02:30.5]} 3. Bg2 {[%clk 0:03:00]} 3... Bg7 {[%clk 0:02:30.4]}
4. O-O {[%clk 0:03:00.5]} 4... O-O {[%clk 0:02:30]} 5. c4 {[%clk 0:03:00.8]}
5... c5 {[%clk 0:02:29]} 6. Nc3 {[%clk 0:03:00.4]} 6... Nc6 {[%clk 0:02:27.1]}
7. d4 {[%clk 0:03:00.2]} 7... d6 {[%clk 0:02:24.4]} 8. dxc5 {[%clk 0:02:59]}
8... dxc5 {[%clk 0:02:23.1]} 9. Be3 {[%clk 0:02:59.7]} 9... Qa5 {[%clk
0:02:19.7]} 10. Bd2 {[%clk 0:02:40.3]} 10... Qa6 {[%clk 0:02:01.4]} 11. Nb5
{[%clk 0:02:34.8]} 11... Qb6 {[%clk 0:01:59.3]} 12. Bf4 {[%clk 0:02:25]} 12...
Ne8 {[%clk 0:01:55.7]} 13. Qc2 {[%clk 0:02:16.5]} 13... a6 {[%clk 0:01:40.7]}
14. Nc3 {[%clk 0:02:16]} 14... Nb4 {[%clk 0:01:35.7]} 15. Qc1 {[%clk 0:02:13]}
15... Nd6 {[%clk 0:01:26.3]} 16. a3 {[%clk 0:02:11.9]} 16... Nc6 {[%clk
0:01:22.6]} 17. Nd5 {[%clk 0:02:10.2]} 17... Qxb2 {[%clk 0:01:09.7]} 18. Rb1
{[%clk 0:01:47.5]} 18... Qxc1 {[%clk 0:01:05.8]} 19. Rfxc1 {[%clk 0:01:48.4]}
19... e5 {[%clk 0:01:00]} 20. Be3 {[%clk 0:01:41.4]} 20... Nd4 {[%clk
0:00:58.3]} 21. Bxd4 {[%clk 0:01:29.8]} 21... exd4 {[%clk 0:00:56.5]} 22. Ne7+
{[%clk 0:01:26.1]} 22... Kh8 {[%clk 0:00:54.6]} 23. Nxc8 {[%clk 0:01:27]} 23...
Raxc8 {[%clk 0:00:52.3]} 24. Ng5 {[%clk 0:01:20.8]} 24... h6 {[%clk 0:00:35.3]}
25. Ne4 {[%clk 0:01:17.9]} 25... Nxe4 {[%clk 0:00:19.4]} 26. Bxe4 {[%clk
0:01:18.8]} 26... b5 {[%clk 0:00:19.4]} 27. cxb5 {[%clk 0:01:15.8]} 27... axb5
{[%clk 0:00:18.4]} 28. Rxb5 {[%clk 0:01:16.7]} 28... c4 {[%clk 0:00:18.5]} 29.
a4 {[%clk 0:01:11.6]} 29... c3 {[%clk 0:00:17.3]} 30. a5 {[%clk 0:01:08.9]}
30... Rb8 {[%clk 0:00:14.9]} 31. Rxb8 {[%clk 0:00:57.5]} 31... Rxb8 {[%clk
0:00:13]} 32. a6 {[%clk 0:00:57.4]} 32... f5 {[%clk 0:00:04.7]} 33. a7 {[%clk
0:00:56.9]} 33... Re8 {[%clk 0:00:03]} 34. a8=Q {[%clk 0:00:55.9]} 1-0

[Event "Late-Titled-Tuesday-Blitz-June-25-2024"]
[Site "Chess.com"]
[Date "2024.06.25"]
[Round "5"]
[White "ReinisUz"]
[Black "dropstoneDP"]
[Result "0-1"]
[WhiteElo "2457"]
[BlackElo "3011"]
[TimeControl "180+1"]
[EndTime "14:53:45 PDT"]
[Termination "dropstoneDP won by resignation"]

1. c4 {[%clk 0:03:00.9]} 1... e5 {[%clk 0:02:59.5]} 2. Nc3 {[%clk 0:02:59]} 2...
Nf6 {[%clk 0:02:59.4]} 3. g3 {[%clk 0:02:58.8]} 3... Bb4 {[%clk 0:02:58.5]} 4.
Bg2 {[%clk 0:02:58.6]} 4... O-O {[%clk 0:02:58.5]} 5. e4 {[%clk 0:02:58.5]} 5...
Bxc3 {[%clk 0:02:51.2]} 6. bxc3 {[%clk 0:02:57.2]} 6... c6 {[%clk 0:02:46.5]} 7.
Ne2 {[%clk 0:02:55.3]} 7... d5 {[%clk 0:02:46.2]} 8. cxd5 {[%clk 0:02:54.8]}
8... cxd5 {[%clk 0:02:47.1]} 9. exd5 {[%clk 0:02:54.9]} 9... Nxd5 {[%clk
0:02:48]} 10. O-O {[%clk 0:02:54.9]} 10... Nc6 {[%clk 0:02:48.5]} 11. Bb2 {[%clk
0:02:38.3]} 11... Bg4 {[%clk 0:02:44.2]} 12. Re1 {[%clk 0:02:33.6]} 12... Qd7
{[%clk 0:02:36.4]} 13. Qb3 {[%clk 0:02:26.1]} 13... Rad8 {[%clk 0:02:30.4]} 14.
d4 {[%clk 0:02:20.8]} 14... Na5 {[%clk 0:02:15.3]} 15. Qc2 {[%clk 0:01:42.1]}
15... Bf5 {[%clk 0:02:14.8]} 16. Qc1 {[%clk 0:01:34.9]} 16... Bh3 {[%clk
0:02:05.3]} 17. dxe5 {[%clk 0:01:22.3]} 17... Bxg2 {[%clk 0:02:04.5]} 18. Kxg2
{[%clk 0:01:23.2]} 18... Nc4 {[%clk 0:02:01.7]} 19. Nd4 {[%clk 0:01:19.1]} 19...
Rfe8 {[%clk 0:01:56.6]} 20. Ba3 {[%clk 0:01:06.6]} 20... Nxe5 {[%clk 0:01:50.8]}
21. Qg5 {[%clk 0:00:45.8]} 21... f6 {[%clk 0:01:49.2]} 22. Qh5 {[%clk
0:00:39.5]} 22... g6 {[%clk 0:01:45.2]} 23. Qh4 {[%clk 0:00:29.2]} 23... Nxc3
{[%clk 0:01:37.8]} 24. Bb2 {[%clk 0:00:21]} 24... Qd5+ {[%clk 0:01:36.2]} 25. f3
{[%clk 0:00:10.4]} 25... g5 {[%clk 0:01:34.3]} 26. Qh6 {[%clk 0:00:02.8]} 26...
Qxd4 {[%clk 0:01:34.3]} 27. Qxf6 {[%clk 0:00:02.6]} 27... Qd2+ {[%clk
0:01:34.3]} 28. Kh3 {[%clk 0:00:02.6]} 28... Qd7+ {[%clk 0:01:27.1]} 29. g4
{[%clk 0:00:01.8]} 29... Nd5 {[%clk 0:00:44.7]} 30. Qxg5+ {[%clk 0:00:01.9]}
30... Ng6 {[%clk 0:00:45.3]} 31. Rxe8+ {[%clk 0:00:01.2]} 31... Rxe8 {[%clk
0:00:46.2]} 32. Rd1 {[%clk 0:00:01.4]} 32... Nf4+ {[%clk 0:00:45.4]} 33. Qxf4
{[%clk 0:00:01.5]} 33... Nxf4+ {[%clk 0:00:44.8]} 0-1

[Event "Late-Titled-Tuesday-Blitz-June-25-2024"]
[Site "Chess.com"]
[Date "2024.06.25"]
[Round "5"]
[White "rockstar0902"]
[Black "mostafa_sakha"]
[Result "1-0"]
[WhiteElo "2615"]
[BlackElo "2442"]
[TimeControl "180+1"]
[EndTime "14:53:51 PDT"]
[Termination "rockstar0902 won by resignation"]

1. c4 {[%clk 0:03:00.9]} 1... b6 {[%clk 0:02:58.9]} 2. Nc3 {[%clk 0:02:59.4]}
2... Bb7 {[%clk 0:02:59.1]} 3. e4 {[%clk 0:02:57.4]} 3... e6 {[%clk 0:02:59]} 4.
d4 {[%clk 0:02:57.3]} 4... Bb4 {[%clk 0:02:58.2]} 5. f3 {[%clk 0:02:57.9]} 5...
f5 {[%clk 0:02:56.9]} 6. exf5 {[%clk 0:02:57.1]} 6... Nh6 {[%clk 0:02:57.2]} 7.
fxe6 {[%clk 0:02:56.5]} 7... Nf5 {[%clk 0:02:56.6]} 8. Bf4 {[%clk 0:02:55.7]}
8... O-O {[%clk 0:02:50.3]} 9. Ne2 {[%clk 0:02:43.7]} 9... dxe6 {[%clk
0:02:44.3]} 10. a3 {[%clk 0:02:31.7]} 10... Be7 {[%clk 0:02:30.9]} 11. Qd3
{[%clk 0:02:25]} 11... Nxd4 {[%clk 0:02:22.9]} 12. Nxd4 {[%clk 0:02:09.1]} 12...
Rxf4 {[%clk 0:02:21.4]} 13. Nxe6 {[%clk 0:02:09.3]} 13... Bh4+ {[%clk 0:01:38]}
14. Kd2 {[%clk 0:02:04.9]} 14... Qxd3+ {[%clk 0:01:36.1]} 15. Bxd3 {[%clk
0:02:05.8]} 15... Rf7 {[%clk 0:01:35.7]} 16. Rad1 {[%clk 0:01:54.4]} 16... Nc6
{[%clk 0:01:28.8]} 17. Be4 {[%clk 0:01:53.6]} 17... Na5 {[%clk 0:01:19.2]} 18.
Bxb7 {[%clk 0:01:53.1]} 18... Nxb7 {[%clk 0:01:16.4]} 19. Kc2 {[%clk 0:01:46.1]}
19... Nd6 {[%clk 0:01:09.6]} 20. b3 {[%clk 0:01:44.8]} 20... Re8 {[%clk
0:01:05.6]} 21. Nxc7 {[%clk 0:01:42.6]} 21... Rxc7 {[%clk 0:00:47.9]} 22. Rxd6
{[%clk 0:01:42.7]} 22... Rce7 {[%clk 0:00:23.7]} 23. Rhd1 {[%clk 0:01:40.4]}
23... Re3 {[%clk 0:00:21.9]} 24. R6d3 {[%clk 0:01:33.8]} 24... R3e7 {[%clk
0:00:20.2]} 25. Nd5 {[%clk 0:01:31.9]} 25... Re2+ {[%clk 0:00:19.6]} 26. R1d2
{[%clk 0:01:31.7]} 26... Bg5 {[%clk 0:00:18.2]} 27. f4 {[%clk 0:01:31.4]} 27...
Bf6 {[%clk 0:00:15.2]} 28. Rxe2 {[%clk 0:01:28.2]} 28... Rxe2+ {[%clk
0:00:13.5]} 29. Rd2 {[%clk 0:01:28.8]} 29... Re4 {[%clk 0:00:13.4]} 30. Nxf6+
{[%clk 0:01:26.4]} 30... gxf6 {[%clk 0:00:13.4]} 31. g3 {[%clk 0:01:27.1]} 31...
Re7 {[%clk 0:00:12.9]} 32. b4 {[%clk 0:01:21.4]} 32... Kf7 {[%clk 0:00:12.9]}
33. c5 {[%clk 0:01:13.8]} 33... bxc5 {[%clk 0:00:12.6]} 34. bxc5 {[%clk
0:01:13.6]} 34... Rc7 {[%clk 0:00:12.7]} 35. Rd5 {[%clk 0:01:13.9]} 35... Ke6
{[%clk 0:00:12.6]} 36. Rh5 {[%clk 0:01:13.4]} 36... f5 {[%clk 0:00:11.8]} 37.
Rh6+ {[%clk 0:01:13.6]} 37... Kd5 {[%clk 0:00:11.5]} 38. c6 {[%clk 0:01:14]}
38... Ke4 {[%clk 0:00:07.4]} 39. Rd6 {[%clk 0:01:11.1]} 39... a5 {[%clk
0:00:07]} 40. Kc3 {[%clk 0:01:11.2]} 40... Kf3 {[%clk 0:00:06.2]} 41. Kc4 {[%clk
0:01:11.3]} 41... Kg2 {[%clk 0:00:05.2]} 42. Rd2+ {[%clk 0:01:11.2]} 42... Kf3
{[%clk 0:00:04.9]} 43. Kc5 {[%clk 0:01:12.1]} 1-0

[Event "Late-Titled-Tuesday-Blitz-June-25-2024"]
[Site "Chess.com"]
[Date "2024.06.25"]
[Round "5"]
[White "IngOscarArdila"]
[Black "andrew-blr"]
[Result "0-1"]
[WhiteElo "2374"]
[BlackElo "2603"]
[TimeControl "180+1"]
[EndTime "14:53:52 PDT"]
[Termination "andrew-blr won by resignation"]

1. d4 {[%clk 0:02:57.9]} 1... Nf6 {[%clk 0:02:57.7]} 2. c4 {[%clk 0:01:56.2]}
2... g6 {[%clk 0:02:56.2]} 3. Nc3 {[%clk 0:01:56.4]} 3... Bg7 {[%clk 0:02:56.1]}
4. Nf3 {[%clk 0:01:57]} 4... O-O {[%clk 0:02:55.8]} 5. e3 {[%clk 0:01:57.5]}
5... d6 {[%clk 0:02:52.4]} 6. Be2 {[%clk 0:01:57.9]} 6... Nc6 {[%clk 0:02:50.2]}
7. O-O {[%clk 0:01:57.7]} 7... e5 {[%clk 0:02:49.8]} 8. dxe5 {[%clk 0:01:56.2]}
8... Nxe5 {[%clk 0:02:47.1]} 9. Nxe5 {[%clk 0:01:56.2]} 9... dxe5 {[%clk
0:02:47.2]} 10. Qb3 {[%clk 0:01:56.1]} 10... c6 {[%clk 0:02:44.6]} 11. Rd1
{[%clk 0:01:55.3]} 11... Qe7 {[%clk 0:02:31.3]} 12. e4 {[%clk 0:01:55.5]} 12...
Be6 {[%clk 0:02:15.8]} 13. Be3 {[%clk 0:01:55.2]} 13... Nh5 {[%clk 0:02:09]} 14.
Bxh5 {[%clk 0:01:53.7]} 14... gxh5 {[%clk 0:02:08.9]} 15. Ne2 {[%clk 0:01:46.3]}
15... b5 {[%clk 0:02:07.4]} 16. Qc3 {[%clk 0:01:36.5]} 16... Bxc4 {[%clk
0:02:05.5]} 17. Ng3 {[%clk 0:01:36.6]} 17... Be6 {[%clk 0:01:41.7]} 18. Bc5
{[%clk 0:01:35.8]} 18... Qg5 {[%clk 0:01:38.2]} 19. Bxf8 {[%clk 0:01:35]} 19...
Rxf8 {[%clk 0:01:37.5]} 20. Qxc6 {[%clk 0:01:29.6]} 20... h4 {[%clk 0:01:36.8]}
21. Nf5 {[%clk 0:01:29.8]} 21... h3 {[%clk 0:01:34]} 22. Ng3 {[%clk 0:01:25.1]}
22... h5 {[%clk 0:01:22.7]} 23. Qxb5 {[%clk 0:00:47.8]} 23... h4 {[%clk
0:01:21.8]} 24. Rac1 {[%clk 0:00:43.5]} 24... hxg3 {[%clk 0:01:20.5]} 25. hxg3
{[%clk 0:00:38.5]} 25... Qh5 {[%clk 0:01:07.9]} 26. gxh3 {[%clk 0:00:29.6]}
26... Bxh3 {[%clk 0:01:07.1]} 27. Rd3 {[%clk 0:00:14]} 27... Bg4 {[%clk
0:01:06.8]} 28. f3 {[%clk 0:00:13.8]} 28... Bxf3 {[%clk 0:01:05.9]} 29. Rxf3
{[%clk 0:00:12.4]} 29... Qxf3 {[%clk 0:01:05.2]} 30. Qb3 {[%clk 0:00:10.7]}
30... Qxe4 {[%clk 0:00:56.7]} 31. Qc2 {[%clk 0:00:09.5]} 31... Qe3+ {[%clk
0:00:51.4]} 32. Kg2 {[%clk 0:00:09.1]} 32... Rd8 {[%clk 0:00:50.7]} 33. Rd1
{[%clk 0:00:08.9]} 33... Rxd1 {[%clk 0:00:45.3]} 34. Qxd1 {[%clk 0:00:09.8]}
34... Qe4+ {[%clk 0:00:44.4]} 35. Kg1 {[%clk 0:00:09.7]} 35... Qd4+ {[%clk
0:00:44.2]} 36. Qxd4 {[%clk 0:00:09.3]} 36... exd4 {[%clk 0:00:45.1]} 0-1

[Event "Late-Titled-Tuesday-Blitz-June-25-2024"]
[Site "Chess.com"]
[Date "2024.06.25"]
[Round "5"]
[White "shirovin"]
[Black "kubal123"]
[Result "0-1"]
[WhiteElo "2105"]
[BlackElo "2295"]
[TimeControl "180+1"]
[EndTime "14:53:54 PDT"]
[Termination "kubal123 won on time"]

1. e4 {[%clk 0:03:00.9]} 1... c5 {[%clk 0:02:59.5]} 2. Nf3 {[%clk 0:03:00.1]}
2... Nc6 {[%clk 0:02:59.8]} 3. d4 {[%clk 0:03:00.6]} 3... cxd4 {[%clk
0:02:59.9]} 4. Nxd4 {[%clk 0:03:01.1]} 4... Nf6 {[%clk 0:03:00.5]} 5. Nc3 {[%clk
0:02:59.9]} 5... e5 {[%clk 0:03:01]} 6. Ndb5 {[%clk 0:03:00]} 6... d6 {[%clk
0:03:00.6]} 7. Nd5 {[%clk 0:02:58.5]} 7... Nxd5 {[%clk 0:03:00.4]} 8. exd5
{[%clk 0:02:58.1]} 8... Nb8 {[%clk 0:03:01]} 9. c4 {[%clk 0:02:58.1]} 9... Be7
{[%clk 0:02:59.1]} 10. Bd3 {[%clk 0:02:54.7]} 10... O-O {[%clk 0:02:59.2]} 11.
O-O {[%clk 0:02:48.1]} 11... Nd7 {[%clk 0:02:58.9]} 12. Be3 {[%clk 0:02:43.5]}
12... a6 {[%clk 0:02:44.2]} 13. Qa4 {[%clk 0:02:35.9]} 13... f5 {[%clk
0:02:43.2]} 14. f3 {[%clk 0:02:31.6]} 14... e4 {[%clk 0:02:24.9]} 15. fxe4
{[%clk 0:02:22.5]} 15... Ne5 {[%clk 0:02:23.5]} 16. Bc2 {[%clk 0:01:27.8]} 16...
Bd7 {[%clk 0:02:22.3]} 17. exf5 {[%clk 0:01:09.8]} 17... axb5 {[%clk 0:02:20.8]}
18. Qb4 {[%clk 0:01:01.9]} 18... Nxc4 {[%clk 0:02:12.9]} 19. Bd4 {[%clk
0:01:00.8]} 19... Bf6 {[%clk 0:02:00.2]} 20. Qc3 {[%clk 0:00:54.6]} 20... Bxd4+
{[%clk 0:01:39.5]} 21. Qxd4 {[%clk 0:00:53.9]} 21... Qb6 {[%clk 0:01:40.4]} 22.
Qxb6 {[%clk 0:00:46.2]} 22... Nxb6 {[%clk 0:01:41.3]} 23. Bd3 {[%clk 0:00:46.3]}
23... Nxd5 {[%clk 0:01:36.8]} 24. Be4 {[%clk 0:00:45.9]} 24... Bc6 {[%clk
0:01:36.2]} 25. Rfd1 {[%clk 0:00:44.4]} 25... Ne3 {[%clk 0:01:31.7]} 26. Bxc6
{[%clk 0:00:39.2]} 26... Nxd1 {[%clk 0:01:20.3]} 27. Bd5+ {[%clk 0:00:38.6]}
27... Kh8 {[%clk 0:01:20.1]} 28. Rxd1 {[%clk 0:00:39]} 28... Rxf5 {[%clk
0:01:20.8]} 29. Bxb7 {[%clk 0:00:38.5]} 29... Rxa2 {[%clk 0:01:15.3]} 30. Be4
{[%clk 0:00:24.4]} 30... Rf6 {[%clk 0:01:13.1]} 31. b4 {[%clk 0:00:13.4]} 31...
g6 {[%clk 0:01:09.5]} 32. h3 {[%clk 0:00:10.6]} 32... Kg7 {[%clk 0:01:09.4]} 33.
Rd5 {[%clk 0:00:09.8]} 33... Re2 {[%clk 0:01:06.6]} 34. Bf3 {[%clk 0:00:08.7]}
34... Re5 {[%clk 0:01:06.8]} 35. Rd3 {[%clk 0:00:06.1]} 35... Rfe6 {[%clk
0:01:05.8]} 36. Bd5 {[%clk 0:00:05.2]} 36... Re3 {[%clk 0:01:05.2]} 37. Rd2
{[%clk 0:00:04.7]} 37... R6e5 {[%clk 0:01:05.5]} 38. Bc6 {[%clk 0:00:03.2]}
38... Re1+ {[%clk 0:01:03.2]} 39. Kh2 {[%clk 0:00:02.6]} 39... Rb1 {[%clk
0:00:59.9]} 40. Rd4 {[%clk 0:00:01.5]} 40... h5 {[%clk 0:00:56.2]} 0-1

[Event "Late-Titled-Tuesday-Blitz-June-25-2024"]
[Site "Chess.com"]
[Date "2024.06.25"]
[Round "5"]
[White "scrambleyourbrain"]
[Black "Juliana_Figueira"]
[Result "0-1"]
[WhiteElo "2371"]
[BlackElo "2002"]
[TimeControl "180+1"]
[EndTime "14:53:55 PDT"]
[Termination "Juliana_Figueira won by resignation"]

1. e4 {[%clk 0:03:00.9]} 1... c5 {[%clk 0:02:59.1]} 2. Nf3 {[%clk 0:03:01.1]}
2... d6 {[%clk 0:02:59]} 3. d4 {[%clk 0:03:01.4]} 3... cxd4 {[%clk 0:02:58.6]}
4. Nxd4 {[%clk 0:03:02.3]} 4... Nf6 {[%clk 0:02:58.8]} 5. Nc3 {[%clk 0:03:02.6]}
5... a6 {[%clk 0:02:58.8]} 6. Be3 {[%clk 0:03:02.9]} 6... e5 {[%clk 0:02:56.8]}
7. Nb3 {[%clk 0:03:02.7]} 7... Be7 {[%clk 0:02:57.1]} 8. f3 {[%clk 0:03:02.6]}
8... Be6 {[%clk 0:02:57.3]} 9. Qd2 {[%clk 0:03:02.9]} 9... O-O {[%clk
0:02:57.9]} 10. O-O-O {[%clk 0:03:03.3]} 10... Nbd7 {[%clk 0:02:57.4]} 11. g4
{[%clk 0:03:03.8]} 11... b5 {[%clk 0:02:57.9]} 12. g5 {[%clk 0:03:04.2]} 12...
Nh5 {[%clk 0:02:52.5]} 13. h4 {[%clk 0:03:02.6]} 13... b4 {[%clk 0:02:48.4]} 14.
Nd5 {[%clk 0:03:00.5]} 14... Bxd5 {[%clk 0:02:46.7]} 15. Qxd5 {[%clk 0:02:59.3]}
15... a5 {[%clk 0:02:36.4]} 16. Kb1 {[%clk 0:02:56.9]} 16... a4 {[%clk
0:02:35.1]} 17. Nc1 {[%clk 0:02:55.8]} 17... Nb6 {[%clk 0:02:30.7]} 18. Bxb6
{[%clk 0:02:55]} 18... Qxb6 {[%clk 0:02:29.8]} 19. Bc4 {[%clk 0:02:54.9]} 19...
Nf4 {[%clk 0:02:26.1]} 20. Qd2 {[%clk 0:02:53.8]} 20... Rac8 {[%clk 0:02:19.6]}
21. b3 {[%clk 0:02:54]} 21... Rfd8 {[%clk 0:02:02.9]} 22. Nd3 {[%clk 0:02:52.4]}
22... d5 {[%clk 0:01:57]} 23. exd5 {[%clk 0:02:49.3]} 23... Nxd5 {[%clk
0:01:55.9]} 24. Bxd5 {[%clk 0:02:47.4]} 24... Rxd5 {[%clk 0:01:55.4]} 25. Qe2
{[%clk 0:02:45.3]} 25... f6 {[%clk 0:01:39]} 26. gxf6 {[%clk 0:02:37.1]} 26...
Bxf6 {[%clk 0:01:37.6]} 27. Qe4 {[%clk 0:02:34.8]} 27... Rd4 {[%clk 0:01:33.5]}
28. Qf5 {[%clk 0:02:34.5]} 28... Qc6 {[%clk 0:01:26.8]} 29. Rh2 {[%clk
0:02:21.6]} 29... a3 {[%clk 0:01:21.3]} 30. c4 {[%clk 0:02:10.8]} 30... bxc3
{[%clk 0:01:17.1]} 31. Rc1 {[%clk 0:02:08.8]} 31... Rcd8 {[%clk 0:00:56.6]} 32.
Nxe5 {[%clk 0:02:05.3]} 32... Bxe5 {[%clk 0:00:43.9]} 33. Qxe5 {[%clk
0:02:05.3]} 33... Qxf3 {[%clk 0:00:41.9]} 34. Rhc2 {[%clk 0:01:59.6]} 34... Rd2
{[%clk 0:00:21.3]} 35. Qe6+ {[%clk 0:01:06.8]} 35... Kh8 {[%clk 0:00:18.1]} 36.
Re1 {[%clk 0:00:51.8]} 36... Rd1+ {[%clk 0:00:14]} 37. Rc1 {[%clk 0:00:50.7]}
37... Rxc1+ {[%clk 0:00:10.5]} 38. Rxc1 {[%clk 0:00:49.5]} 38... Qd3+ {[%clk
0:00:10.6]} 39. Ka1 {[%clk 0:00:49.4]} 39... Qd2 {[%clk 0:00:09.8]} 40. Rb1
{[%clk 0:00:45.7]} 40... c2 {[%clk 0:00:09.3]} 0-1

[Event "Late-Titled-Tuesday-Blitz-June-25-2024"]
[Site "Chess.com"]
[Date "2024.06.25"]
[Round "5"]
[White "petr577"]
[Black "Pedrada88"]
[Result "1-0"]
[WhiteElo "2368"]
[BlackElo "2556"]
[TimeControl "180+1"]
[EndTime "14:53:59 PDT"]
[Termination "petr577 won by checkmate"]

1. d4 {[%clk 0:03:00.9]} 1... b6 {[%clk 0:03:00.9]} 2. e4 {[%clk 0:02:56]} 2...
Bb7 {[%clk 0:03:01.8]} 3. Bd3 {[%clk 0:02:55.8]} 3... e6 {[%clk 0:03:02.2]} 4.
Nf3 {[%clk 0:02:54.4]} 4... d5 {[%clk 0:03:02.3]} 5. e5 {[%clk 0:02:51.3]} 5...
c5 {[%clk 0:03:01.4]} 6. c3 {[%clk 0:02:42.9]} 6... Qd7 {[%clk 0:03:01.6]} 7.
Nbd2 {[%clk 0:02:33.2]} 7... Ba6 {[%clk 0:03:01.5]} 8. c4 {[%clk 0:02:33.7]}
8... cxd4 {[%clk 0:03:00.2]} 9. O-O {[%clk 0:02:25.4]} 9... Bb4 {[%clk
0:02:55.3]} 10. Qb3 {[%clk 0:01:59.8]} 10... Bxd2 {[%clk 0:02:25.7]} 11. Bxd2
{[%clk 0:01:57.1]} 11... dxc4 {[%clk 0:02:25.8]} 12. Bxc4 {[%clk 0:01:58]} 12...
Bxc4 {[%clk 0:02:26.2]} 13. Qxc4 {[%clk 0:01:58.9]} 13... Ne7 {[%clk 0:02:25.1]}
14. Bb4 {[%clk 0:01:42]} 14... Nd5 {[%clk 0:02:16.7]} 15. Bd6 {[%clk 0:01:38.7]}
15... Nc6 {[%clk 0:02:15.6]} 16. Rac1 {[%clk 0:01:23.6]} 16... Rc8 {[%clk
0:02:14.8]} 17. Nxd4 {[%clk 0:01:21.7]} 17... Nde7 {[%clk 0:01:56.8]} 18. Nxc6
{[%clk 0:00:37.8]} 18... Qxc6 {[%clk 0:01:47]} 19. Qf4 {[%clk 0:00:27.7]} 19...
Qb7 {[%clk 0:01:39.2]} 20. Qg5 {[%clk 0:00:20.4]} 20... Nf5 {[%clk 0:00:52.2]}
21. Rxc8+ {[%clk 0:00:16.6]} 21... Qxc8 {[%clk 0:00:53.1]} 22. Rc1 {[%clk
0:00:16]} 22... Qa6 {[%clk 0:00:53.4]} 23. Ba3 {[%clk 0:00:15.3]} 23... h6
{[%clk 0:00:42.7]} 24. Qd2 {[%clk 0:00:14.2]} 24... f6 {[%clk 0:00:29.3]} 25.
Rc7 {[%clk 0:00:08.1]} 25... Qb5 {[%clk 0:00:25.8]} 26. g4 {[%clk 0:00:05.6]}
26... Qxe5 {[%clk 0:00:15.1]} 27. Qd7# {[%clk 0:00:03.8]} 1-0